fUST/lending_fUST_20250810
["ID","MTS","AMOUNT","RATE_DAILY","PERIOD"]
[378318943,1754823049529,-460.0,0.00023487,2]
[378318944,1754823049538,-665.01,0.00023487,2]
[378318945,1754823049547,-1503.61,0.00023487,2]
[378318946,1754823049557,-460.0,0.00023487,2]
[378318947,1754823049566,-1701.36,0.00023487,2]
[378318948,1754823049575,-479.07,0.00023487,2]
[378318949,1754823049585,-460.0,0.00023487,2]
[378318950,1754823049596,-1158.71,0.00023487,2]
[378318951,1754823049605,-460.0,0.00023487,2]
[378318952,1754823049614,-760.4,0.00023487,2]
[378318953,1754823049624,-751.04,0.00023487,2]
[378318954,1754823049633,-460.0,0.00023487,2]
[378318955,1754823049643,-472.09,0.00023487,2]
[378318956,1754823049652,-1013.66,0.00023487,2]
[378318957,1754823049661,-460.0,0.00023488,2]
[378318958,1754823049672,-460.0,0.00023488,2]
[378318959,1754823049681,-460.0,0.00023488,2]
[378318960,1754823049692,-460.0,0.00023488,2]
[378318961,1754823049701,-460.0,0.00023488,2]
[378318962,1754823049714,-460.0,0.00023488,2]
[378318963,1754823049723,-970.74,0.00023488,2]
[378318964,1754823049733,-4237.2,0.00023488,2]
[378318965,1754823049742,-460.0,0.00023488,2]
[378318966,1754823049752,-484.95,0.00023488,2]
[378318967,1754823049762,-970.2,0.00023488,2]
[378318968,1754823049772,-1504.3,0.00023488,2]
[378318969,1754823049781,-1597.08,0.00023488,2]
[378318970,1754823049790,-1551.0,0.00023488,2]
[378318971,1754823049799,-460.0,0.00023489,2]
[378318972,1754823049808,-498.19,0.00023489,2]
[378318973,1754823049818,-460.0,0.00023489,2]
[378318974,1754823049827,-460.0,0.0002349,2]
[378318975,1754823049836,-633.63,0.0002349,2]
[378318976,1754823049846,-1040.39,0.0002349,2]
[378318977,1754823049855,-151.0,0.00023508,7]
[378318978,1754823049865,-1551.0,0.00023508,2]
[378318979,1754823049878,-1551.0,0.0002351,2]
[378318980,1754823049888,-509.4,0.00023548,3]
[378318981,1754823049897,-276.54,0.00023627,2]
[378318982,1754823049907,-200.0,0.0002366,8]
[378318983,1754823049916,-991.12,0.00023663,2]
[378318984,1754823049925,-150.0,0.00023687,2]
[378318985,1754823049934,-1551.0,0.00023691,2]
[378318986,1754823049943,-151.0,0.000237,9]
[378318987,1754823049953,-448.13,0.00023735,2]
[378318988,1754823049963,-902.52,0.00023739,2]
[378318989,1754823049972,-1682.52,0.00023739,2]
[378318990,1754823049987,-5449.43,0.00023739,2]
[378318991,1754823050000,-460.0,0.00023739,2]
[378318992,1754823050015,-460.0,0.00023739,2]
[378318993,1754823050024,-460.0,0.00023761,2]
[378318994,1754823050033,-460.0,0.00023761,2]
[378318995,1754823050042,-843.73,0.00023761,2]
[378318996,1754823050051,-1885.24,0.00023761,2]
[378318997,1754823050060,-460.0,0.00023761,2]
[378318998,1754823050069,-460.0,0.00023761,2]
[378318999,1754823050078,-665.01,0.00023761,2]
[378319000,1754823050089,-1503.61,0.00023761,2]
[378319001,1754823050097,-460.0,0.00023761,2]
[378319002,1754823050107,-1701.36,0.00023761,2]
[378319003,1754823050117,-224.09693725,0.00023761,2]
[378319004,1754823050126,-1158.71,0.00023761,2]
[378319005,1754823050135,-221.00987132,0.00023761,2]
[378319006,1754823050145,-760.4,0.00023761,2]
[378319007,1754823050155,-751.04,0.00023761,2]
[378319008,1754823050164,-460.0,0.00023761,2]
[378319009,1754823050174,-472.09,0.00023761,2]
[378319010,1754823050183,-1013.66,0.00023761,2]
[378319011,1754823050193,-460.0,0.00023762,2]
[378319012,1754823050202,-460.0,0.00023762,2]
[378319013,1754823050211,-460.0,0.00023762,2]
[378319014,1754823050220,-460.0,0.00023762,2]
[378319015,1754823050229,-460.0,0.00023762,2]
[378319016,1754823050239,-460.0,0.00023762,2]
[378319017,1754823050248,-970.74,0.00023762,2]
[378319018,1754823050258,-4237.2,0.00023762,2]
[378319019,1754823050267,-460.0,0.00023762,2]
[378319020,1754823050276,-484.95,0.00023762,2]
[378319021,1754823050285,-970.2,0.00023762,2]
[378319022,1754823050294,-1504.3,0.00023762,2]
[378319023,1754823050303,-1597.08,0.00023762,2]
[378319024,1754823050312,-460.0,0.00023763,2]
[378319025,1754823050321,-498.19,0.00023763,2]
[378319026,1754823050331,-460.0,0.00023763,2]
[378319027,1754823050340,-460.0,0.00023764,2]
[378319028,1754823050349,-633.63,0.00023764,2]
[378319029,1754823050358,-1040.39,0.00023764,2]
[378319030,1754823050367,-2500.0,0.00023764,2]
[378319031,1754823050377,-2500.0,0.00023764,2]
[378319032,1754823050386,-2500.0,0.00023764,2]
[378319033,1754823050396,-1508.86272539,0.00023764,2]
[378319034,1754823050405,-3000.0,0.00023812,2]
[378319035,1754823050415,-2885.8673394,0.00023812,2]
[378319036,1754823050424,-3000.0,0.00023812,2]
[378319037,1754823050434,-3000.0,0.00023812,2]
[378319038,1754823050443,-3000.0,0.00023812,2]
[378319039,1754823050452,-450.0,0.00023816,2]
[378319040,1754823050461,-816.28502718,0.00023816,2]
[378319041,1754823050470,-151.0,0.00023865,7]
[378319042,1754823050479,-678.3950871,0.000239,2]
[378319043,1754823050488,-991.12,0.00023937,2]
[378319044,1754823050498,-460.0,0.00023999,2]
[378319045,1754823050507,-151.0,0.00024,5]
[378319046,1754823050516,-151.0,0.00024,6]
[378319047,1754823050525,-652.48016844,0.00024012,2]
[378319048,1754823050534,-902.52,0.00024013,2]
[378319049,1754823050544,-1682.52,0.00024013,2]
[378319050,1754823050553,-5449.43,0.00024013,2]
[378319051,1754823050562,-275.7,0.00024013,2]
[378319052,1754823050571,-535.6318418,0.00024013,2]
[378319053,1754823050580,-1551.0,0.00024024,2]
[378319054,1754823050589,-460.0,0.00024035,2]
[378319055,1754823050599,-200.42,0.00024035,2]
[378319056,1754823050608,-843.73,0.00024035,2]
[378319057,1754823050617,-1885.24,0.00024035,2]
[378319058,1754823050627,-460.0,0.00024035,2]
[378319059,1754823050636,-460.0,0.00024035,2]
[378319060,1754823050645,-665.01,0.00024035,2]
[378319061,1754823050654,-1503.61,0.00024035,2]
[378319062,1754823050664,-460.0,0.00024035,2]
[378319063,1754823050673,-1701.36,0.00024035,2]
[378319064,1754823050759,-1158.71,0.00024035,2]
[378319065,1754823050779,-760.4,0.00024035,2]
[378319066,1754823050788,-751.04,0.00024035,2]
[378319067,1754823050798,-460.0,0.00024035,2]
[378319068,1754823050807,-472.09,0.00024035,2]
[378319069,1754823050825,-1013.66,0.00024035,2]
[378319070,1754823050838,-460.0,0.00024036,2]
[378319071,1754823050848,-460.0,0.00024036,2]
[378319072,1754823050859,-460.0,0.00024036,2]
[378319073,1754823050871,-460.0,0.00024036,2]
[378319074,1754823050883,-460.0,0.00024036,2]
[378319075,1754823050893,-460.0,0.00024036,2]
[378319076,1754823050903,-970.74,0.00024036,2]
[378319077,1754823050915,-4237.2,0.00024036,2]
[378319078,1754823050925,-460.0,0.00024036,2]
[378319079,1754823050935,-484.95,0.00024036,2]
[378319080,1754823050946,-970.2,0.00024036,2]
[378319081,1754823050956,-1504.3,0.00024036,2]
[378319082,1754823050966,-1597.08,0.00024036,2]
[378319083,1754823050976,-460.0,0.00024037,2]
[378319084,1754823050986,-498.19,0.00024037,2]
[378319085,1754823050996,-460.0,0.00024037,2]
[378319086,1754823051007,-460.0,0.00024038,2]
[378319087,1754823051018,-633.63,0.00024038,2]
[378319088,1754823051027,-1040.39,0.00024038,2]
[378319089,1754823051038,-4244.26697709,0.00024042,5]
[378319090,1754823051049,-1551.0,0.00024059,2]
[378319091,1754823051059,-200.0,0.00024111,15]
[378319092,1754823051069,-200.0,0.00024111,15]
[378319093,1754823051080,-300.0,0.00024111,15]
[378319094,1754823051090,-509.4,0.00024179,3]
[378319095,1754823051100,-2000.0,0.00024188,2]
[378319096,1754823051110,-1551.0,0.00024199,2]
[378319097,1754823051119,-991.12,0.00024211,2]
[378319098,1754823051129,-1000.0,0.00024282,2]
[378319099,1754823051140,-902.52,0.00024287,2]
[378319100,1754823051149,-1682.52,0.00024287,2]
[378319101,1754823051160,-5449.43,0.00024287,2]
[378319102,1754823051170,-151.0,0.00024295,7]
[378319103,1754823051180,-1426.33637432,0.00024295,2]
[378319104,1754823051562,-460.0,0.00020923,2]
[378319105,1754823051572,-500.0,0.00020979,2]
[378319106,1754823051582,-500.0,0.00020979,2]
[378319107,1754823051592,-410.88146637,0.00020979,2]
[378319108,1754823051602,-609.94054999,0.00020979,2]
[378319109,1754823051611,-460.0,0.00020999,2]
[378319110,1754823051621,-460.0,0.00021022,2]
[378319111,1754823051630,-460.0,0.00021023,2]
[378319112,1754823051639,-460.0,0.00021023,2]
[378319113,1754823051649,-460.0,0.00021197,2]
[378319114,1754823051659,-199.44,0.00021273,2]
[378319115,1754823051668,-151.0,0.00023008,2]
[378319116,1754823051678,-151.0,0.00023008,2]
[378319117,1754823051687,-151.0,0.00023008,2]
[378319118,1754823051696,-500.0,0.00023008,2]
[378319119,1754823051719,-151.0,0.00023008,2]
[378319120,1754823051728,-151.0,0.00023008,2]
[378319121,1754823051737,-151.0,0.00023008,2]
[378319122,1754823051747,-151.0,0.00023008,2]
[378319123,1754823051757,-784.7,0.00023408,2]
[378319124,1754823051767,-784.7,0.00023597,2]
[378319125,1754823051777,-784.7,0.00023899,2]
[378319126,1754823051787,-784.7,0.00024198,2]
[378319127,1754823051796,-124.66362568,0.00024295,2]
[378319128,1754823051806,-151.0,0.000243,10]
[378319129,1754823051816,-151.0,0.000243,6]
[378319130,1754823051825,-460.0,0.00024309,2]
[378319131,1754823051835,-843.73,0.00024309,2]
[378319132,1754823051844,-1885.24,0.00024309,2]
[378319133,1754823051854,-394.53,0.00024309,2]
[378319134,1754823051864,-460.0,0.00024309,2]
[378319135,1754823051874,-665.01,0.00024309,2]
[378319136,1754823051886,-1503.61,0.00024309,2]
[378319137,1754823051896,-460.0,0.00024309,2]
[378319138,1754823051904,-1701.36,0.00024309,2]
[378319139,1754823051914,-1158.71,0.00024309,2]
[378319140,1754823051923,-760.4,0.00024309,2]
[378319141,1754823051933,-751.04,0.00024309,2]
[378319142,1754823051942,-460.0,0.00024309,2]
[378319143,1754823051952,-472.09,0.00024309,2]
[378319144,1754823051962,-1013.66,0.00024309,2]
[378319145,1754823051971,-460.0,0.0002431,2]
[378319146,1754823051980,-517.12253678,0.0002431,2]
[378319147,1754823051989,-460.0,0.0002431,2]
[378319148,1754823051999,-460.0,0.0002431,2]
[378319149,1754823052008,-460.0,0.0002431,2]
[378319150,1754823052018,-460.0,0.0002431,2]
[378319151,1754823052027,-970.74,0.0002431,2]
[378319152,1754823052036,-460.0,0.0002431,2]
[378319153,1754823052046,-484.95,0.0002431,2]
[378319154,1754823052056,-970.2,0.0002431,2]
[378319155,1754823052065,-1504.3,0.0002431,2]
[378319156,1754823052075,-1597.08,0.0002431,2]
[378319157,1754823052084,-460.0,0.00024311,2]
[378319158,1754823052094,-498.19,0.00024311,2]
[378319159,1754823052103,-460.0,0.00024311,2]
[378319160,1754823052112,-460.0,0.00024312,2]
[378319161,1754823052121,-633.63,0.00024312,2]
[378319162,1754823052131,-1040.39,0.00024312,2]
[378319163,1754823052140,-3000.0,0.00024312,2]
[378319164,1754823052150,-504.57187711,0.00024312,2]
[378319165,1754823052159,-3000.0,0.00024312,2]
[378319166,1754823052169,-151.0,0.00024353,7]
[378319167,1754823052179,-3500.0,0.0002436,2]
[378319168,1754823052188,-2510.68367649,0.0002436,2]
[378319169,1754823052199,-3500.0,0.0002436,2]
[378319170,1754823052208,-3500.0,0.0002436,2]
[378319171,1754823052218,-479.97029158,0.00024364,2]
[378319172,1754823052227,-1500.0,0.00024364,2]
[378319173,1754823052237,-3000.0,0.00024366,2]
[378319174,1754823052246,-151.0,0.00024377,2]
[378319175,1754823052257,-1632.35,0.00024383,2]
[378319176,1754823052267,-784.7,0.00024481,2]
[378319177,1754823052276,-4000.0,0.00024482,2]
[378319178,1754823052286,-991.12,0.00024485,2]
[378319179,1754823052296,-234.731482,0.000245,2]
[378319180,1754823052305,-180.010373,0.00024518,2]
[378319181,1754823052314,-1551.0,0.00024523,2]
[378319182,1754823052324,-6000.0,0.00024526,2]
[378319183,1754823052333,-151.0,0.00024526,7]
[378319184,1754823052343,-151.0,0.00024526,7]
[378319185,1754823052353,-1551.0,0.00024544,2]
[378319186,1754823052363,-560.0,0.00024547,2]
[378319187,1754823052372,-902.52,0.00024561,2]
[378319188,1754823052381,-1682.52,0.00024561,2]
[378319189,1754823052391,-5449.43,0.00024561,2]
[378319190,1754823052494,-153.0,0.00024581,2]
[378319191,1754823052518,-153.0,0.00024581,2]
[378319192,1754823052528,-473.35,0.00024583,2]
[378319193,1754823052538,-843.73,0.00024583,2]
[378319194,1754823052548,-1885.24,0.00024583,2]
[378319195,1754823052558,-460.0,0.00024583,2]
[378319196,1754823052567,-665.01,0.00024583,2]
[378319197,1754823052577,-1503.61,0.00024583,2]
[378319198,1754823052587,-460.0,0.00024583,2]
[378319199,1754823052598,-1701.36,0.00024583,2]
[378319200,1754823052607,-1158.71,0.00024583,2]
[378319201,1754823052617,-760.4,0.00024583,2]
[378319202,1754823052629,-751.04,0.00024583,2]
[378319203,1754823052644,-460.0,0.00024583,2]
[378319204,1754823052655,-472.09,0.00024583,2]
[378319205,1754823052665,-1013.66,0.00024583,2]
[378319206,1754823052674,-460.0,0.00024584,2]
[378319207,1754823052684,-460.0,0.00024584,2]
[378319208,1754823052693,-460.0,0.00024584,2]
[378319209,1754823052719,-460.0,0.00024584,2]
[378319210,1754823052728,-460.0,0.00024584,2]
[378319211,1754823052738,-970.74,0.00024584,2]
[378319212,1754823052747,-460.0,0.00024584,2]
[378319213,1754823052759,-484.95,0.00024584,2]
[378319214,1754823052768,-970.2,0.00024584,2]
[378319215,1754823052779,-1504.3,0.00024584,2]
[378319216,1754823052789,-1597.08,0.00024584,2]
[378319217,1754823052800,-398.47,0.00024585,2]
[378319218,1754823052812,-498.19,0.00024585,2]
[378319219,1754823052822,-213.94815516,0.00024585,2]
[378319220,1754823052831,-784.7,0.00024585,2]
[378319221,1754823052840,-460.0,0.00024586,2]
[378319222,1754823052850,-633.63,0.00024586,2]
[378319223,1754823052860,-1040.39,0.00024586,2]
[378319224,1754823052873,-151.0,0.000246,7]
[378319225,1754823052882,-248.96,0.00024617,2]
[378319226,1754823052892,-207.51,0.00024657,2]
[378319227,1754823052901,-5068.15,0.00024657,4]
[378319228,1754823052910,-1000.0,0.00024658,2]
[378319229,1754823052921,-1000.0,0.00024658,2]
[378319230,1754823052930,-574.94161269,0.00024658,2]
[378319231,1754823052939,-380.0,0.00024658,2]
[378319232,1754823052948,-151.0,0.00024658,2]
[378319233,1754823052957,-500.0,0.00024658,2]
[378319234,1754823052967,-500.0,0.00024658,2]
[378319235,1754823052977,-500.0,0.00024658,2]
[378319236,1754823052986,-215.96703224,0.00024658,2]
[378319237,1754823052996,-500.0,0.00024658,2]
[378319238,1754823053006,-500.0,0.00024658,2]
[378319239,1754823053015,-1551.0,0.00024667,2]
[378319240,1754823053024,-248.96,0.0002469,2]
[378319241,1754823053034,-1551.0,0.0002474,2]
[378319242,1754823053043,-991.12,0.00024759,2]
[378319243,1754823053053,-587.0,0.00024759,2]
[378319244,1754823053062,-248.96,0.00024762,2]
[378319245,1754823053071,-151.4297,0.00024776,2]
[378319246,1754823053081,-784.7,0.00024798,2]
[378319247,1754823053091,-216.64838636,0.000248,3]
[378319248,1754823053101,-4750.36417485,0.000248,2]
[378319249,1754823053110,-12705.20357888,0.000248,2]
[378319250,1754823053120,-151.0,0.00024806,7]
[378319251,1754823053130,-1551.0,0.00024806,2]
[378319252,1754823053139,-509.4,0.00024811,3]
[378319253,1754823053149,-902.52,0.00024835,2]
[378319254,1754823053158,-1682.52,0.00024835,2]
[378319255,1754823053167,-5449.43,0.00024835,2]
[378319256,1754823053177,-843.73,0.00024857,2]
[378319257,1754823053186,-1885.24,0.00024857,2]
[378319258,1754823053197,-460.0,0.00024857,2]
[378319259,1754823053206,-665.01,0.00024857,2]
[378319260,1754823053216,-1503.61,0.00024857,2]
[378319261,1754823053226,-460.0,0.00024857,2]
[378319262,1754823053236,-1701.36,0.00024857,2]
[378319263,1754823053245,-1158.71,0.00024857,2]
[378319264,1754823053255,-760.4,0.00024857,2]
[378319265,1754823053265,-751.04,0.00024857,2]
[378319266,1754823053275,-460.0,0.00024857,2]
[378319267,1754823053285,-472.09,0.00024857,2]
[378319268,1754823053295,-1013.66,0.00024857,2]
[378319269,1754823053304,-460.0,0.00024858,2]
[378319270,1754823053314,-460.0,0.00024858,2]
[378319271,1754823053323,-435.51,0.00024858,2]
[378319272,1754823053333,-460.0,0.00024858,2]
[378319273,1754823053345,-460.0,0.00024858,2]
[378319274,1754823053355,-970.74,0.00024858,2]
[378319275,1754823053365,-460.0,0.00024858,2]
[378319276,1754823053375,-484.95,0.00024858,2]
[378319277,1754823053384,-970.2,0.00024858,2]
[378319278,1754823053395,-1504.3,0.00024858,2]
[378319279,1754823053404,-1597.08,0.00024858,2]
[378319280,1754823053415,-784.7,0.00024858,2]
[378319281,1754823053425,-784.7,0.00024858,2]
[378319282,1754823053434,-784.7,0.00024858,2]
[378319283,1754823053443,-784.7,0.00024858,2]
[378319284,1754823053452,-498.19,0.00024859,2]
[378319285,1754823053461,-460.0,0.0002486,2]
[378319286,1754823053471,-633.63,0.0002486,2]
[378319287,1754823053480,-1040.39,0.0002486,2]
[378319288,1754823053489,-2062.71469188,0.0002486,2]
[378319289,1754823053498,-3500.0,0.0002486,2]
[378319290,1754823053508,-8024.00771853,0.00024868,7]
[378319291,1754823053517,-200.57134424,0.00024873,2]
[378319292,1754823053526,-4747.08,0.00024899,5]
[378319293,1754823053536,-151.0,0.00024899,7]
[378319294,1754823053545,-151.0,0.000249,7]
[378319295,1754823053555,-151.0,0.000249,7]
[378319296,1754823053565,-216.64838636,0.000249,7]
[378319297,1754823053575,-712319.092287,0.000249,2]
[378319298,1754823053593,-160.0,0.000249,7]
[378319299,1754823053603,-843.0869304,0.000249,7]
[378319300,1754823053612,-160.0,0.000249,7]
[378319301,1754823053621,-160.0,0.000249,7]
[378319302,1754823053631,-312.16666667,0.000249,7]
[378319303,1754823053641,-160.0,0.000249,7]
[378319304,1754823053652,-527.86640923,0.000249,7]
[378319305,1754823053662,-12668.57659669,0.000249,7]
[378319306,1754823053672,-231.96268195,0.000249,7]
[378319307,1754823053682,-160.0,0.000249,7]
[378319308,1754823053692,-461.62346162,0.000249,7]
[378319309,1754823053701,-4000.0,0.00024908,2]
[378319310,1754823053711,-4000.0,0.00024908,2]
[378319311,1754823053721,-4000.0,0.00024908,2]
[378319312,1754823053730,-151.73081081,0.00024932,2]
[378319313,1754823053744,-500.0,0.00024932,2]
[378319314,1754823053754,-1551.0,0.00024948,2]
[378319315,1754823053763,-1551.0,0.00024973,2]
[378319316,1754823053773,-1139.0,0.00024996,2]
[378319317,1754823053782,-1000.0,0.00025,25]
[378319318,1754823053792,-300.3186095,0.00025,2]
[378319319,1754823053801,-991.12,0.00025033,2]
[378319320,1754823053810,-1551.0,0.00025046,2]
[378319321,1754823053819,-157.60218467,0.00025076,2]
[378319322,1754823053829,-1551.0,0.00025089,2]
[378319323,1754823053838,-1551.0,0.0002509,2]
[378319324,1754823053849,-660.0,0.00025095,2]
[378319325,1754823053860,-902.52,0.00025109,2]
[378319326,1754823053878,-1682.52,0.00025109,2]
[378319327,1754823053888,-5449.43,0.00025109,2]
[378319328,1754823053898,-150.0,0.00025131,2]
[378319329,1754823053908,-843.73,0.00025131,2]
[378319330,1754823053917,-1885.24,0.00025131,2]
[378319331,1754823053926,-460.0,0.00025131,2]
[378319332,1754823053936,-665.01,0.00025131,2]
[378319333,1754823053945,-1503.61,0.00025131,2]
[378319334,1754823053955,-460.0,0.00025131,2]
[378319335,1754823053964,-1701.36,0.00025131,2]
[378319336,1754823053974,-1158.71,0.00025131,2]
[378319337,1754823053983,-760.4,0.00025131,2]
[378319338,1754823053992,-751.04,0.00025131,2]
[378319339,1754823054002,-460.0,0.00025131,2]
[378319340,1754823054012,-472.09,0.00025131,2]
[378319341,1754823054025,-1013.66,0.00025131,2]
[378319342,1754823054034,-460.0,0.00025132,2]
[378319343,1754823054044,-460.0,0.00025132,2]
[378319344,1754823054054,-460.0,0.00025132,2]
[378319345,1754823054063,-460.0,0.00025132,2]
[378319346,1754823054073,-970.74,0.00025132,2]
[378319347,1754823054083,-460.0,0.00025132,2]
[378319348,1754823054094,-484.95,0.00025132,2]
[378319349,1754823054103,-970.2,0.00025132,2]
[378319350,1754823054113,-1504.3,0.00025132,2]
[378319351,1754823054123,-1597.08,0.00025132,2]
[378319352,1754823054133,-498.19,0.00025133,2]
[378319353,1754823054142,-460.0,0.00025134,2]
[378319354,1754823054152,-633.63,0.00025134,2]
[378319355,1754823054161,-1040.39,0.00025134,2]
[378319356,1754823054251,-1551.0,0.00025153,2]
[378319357,1754823054261,-6306.53855808,0.00025164,2]
[378319358,1754823054271,-500.0,0.00025206,2]
[378319359,1754823054280,-1551.0,0.00025224,2]
[378319360,1754823054289,-179.87408814,0.00025268,2]
[378319361,1754823054299,-200.0,0.0002527,12]
[378319362,1754823054309,-991.12,0.00025307,2]
[378319363,1754823054319,-1551.0,0.00025343,2]
[378319364,1754823054328,-902.52,0.00025383,2]
[378319365,1754823054338,-1682.52,0.00025383,2]
[378319366,1754823054349,-5449.43,0.00025383,2]
[378319367,1754823054358,-843.73,0.00025405,2]
[378319368,1754823054367,-1885.24,0.00025405,2]
[378319369,1754823054377,-460.0,0.00025405,2]
[378319370,1754823054386,-665.01,0.00025405,2]
[378319371,1754823054396,-1503.61,0.00025405,2]
[378319372,1754823054406,-460.0,0.00025405,2]
[378319373,1754823054417,-1701.36,0.00025405,2]
[378319374,1754823054427,-1158.71,0.00025405,2]
[378319375,1754823054436,-760.4,0.00025405,2]
[378319376,1754823054446,-751.04,0.00025405,2]
[378319377,1754823054455,-460.0,0.00025405,2]
[378319378,1754823054465,-472.09,0.00025405,2]
[378319379,1754823054475,-1013.66,0.00025405,2]
[378319380,1754823054484,-460.0,0.00025406,2]
[378319381,1754823054493,-236.10091643,0.00025406,2]
[378319382,1754823054503,-460.0,0.00025406,2]
[378319383,1754823054512,-536.52921865,0.00025406,2]
[378319384,1754823054522,-970.74,0.00025406,2]
[378319385,1754823054531,-460.0,0.00025406,2]
[378319386,1754823054540,-484.95,0.00025406,2]
[378319387,1754823054550,-970.2,0.00025406,2]
[378319388,1754823054559,-1504.3,0.00025406,2]
[378319389,1754823054568,-1597.08,0.00025406,2]
[378319390,1754823054577,-498.19,0.00025407,2]
[378319391,1754823054587,-460.0,0.00025408,2]
[378319392,1754823054598,-633.63,0.00025408,2]
[378319393,1754823054607,-1040.39,0.00025408,2]
[378319394,1754823054616,-4000.0,0.00025408,2]
[378319395,1754823054626,-509.4,0.00025442,4]
[378319396,1754823054636,-2016.34251529,0.00025456,2]
[378319397,1754823054645,-4500.0,0.00025456,2]
[378319398,1754823054654,-3531.02381419,0.00025456,2]
[378319399,1754823054663,-1510.51930169,0.0002546,2]
[378319400,1754823054673,-500.0,0.0002548,2]
[378319401,1754823054682,-1632.35,0.00025575,7]
[378319402,1754823054692,-991.12,0.00025581,2]
[378319403,1754823054701,-2200.0,0.00025606,2]
[378319404,1754823054711,-501.056,0.00025606,2]
[378319405,1754823054719,-234.731482,0.00025624,2]
[378319406,1754823054728,-760.0,0.00025643,2]
[378319407,1754823054738,-902.52,0.00025657,2]
[378319408,1754823054747,-1682.52,0.00025657,2]
[378319409,1754823054756,-5449.43,0.00025657,2]
[378319410,1754823054766,-843.73,0.00025679,2]
[378319411,1754823054775,-1885.24,0.00025679,2]
[378319412,1754823054784,-460.0,0.00025679,2]
[378319413,1754823054793,-665.01,0.00025679,2]
[378319414,1754823054802,-1503.61,0.00025679,2]
[378319415,1754823054812,-274.82505721,0.00025679,2]
[378319416,1754823054821,-1701.36,0.00025679,2]
[378319417,1754823054831,-1158.71,0.00025679,2]
[378319418,1754823054841,-760.4,0.00025679,2]
[378319419,1754823054850,-751.04,0.00025679,2]
[378319420,1754823054859,-500.93,0.00025679,2]
[378319421,1754823054870,-472.09,0.00025679,2]
[378319422,1754823054880,-1013.66,0.00025679,2]
[378319423,1754823054889,-460.0,0.0002568,2]
[378319424,1754823054898,-460.0,0.0002568,2]
[378319425,1754823054907,-970.74,0.0002568,2]
[378319426,1754823054916,-460.0,0.0002568,2]
[378319427,1754823054926,-484.95,0.0002568,2]
[378319428,1754823054935,-970.2,0.0002568,2]
[378319429,1754823054945,-1504.3,0.0002568,2]
[378319430,1754823054954,-1597.08,0.0002568,2]
[378319431,1754823054963,-498.19,0.00025681,2]
[378319432,1754823054973,-461.8633236,0.00025682,2]
[378319433,1754823054983,-633.63,0.00025682,2]
[378319434,1754823054992,-1040.39,0.00025682,2]
[378319435,1754823055002,-172.00826619,0.00025699,2]
[378319436,1754823055012,-500.0,0.00025754,2]
[378319437,1754823055021,-160.0,0.00025779,3]
[378319438,1754823055030,-991.12,0.00025855,2]
[378319439,1754823055039,-902.52,0.00025931,2]
[378319440,1754823055049,-1682.52,0.00025931,2]
[378319441,1754823055059,-5449.43,0.00025931,2]
[378319442,1754823055068,-843.73,0.00025953,2]